{"text_format":"1","workbook":"xlsx","n_sheets":6,"sheets":["Anleitung","Massivlaube","Holzlaube (Standard)","Holzlaube (Typ A)","Holzlaube (Typ B)","Holzlaube (Nurdach)"],"not_rendered":{"charts":0,"images":7,"macros":1,"external_links":0,"defined_names":13,"comments":0,"pivot_tables":0},"unopened":[],"bounds":{"document_bytes":16777216,"sheet_cells":100000,"rows_first":2000,"rows_last":500,"rows_between":2000,"halvings":0,"cell_chars":16384,"cell_head_chars":4096},"cells_cut":0,"cells_raw":0,"read":"whole","date_system":"1900"}

{"sheet":"Anleitung","index":0,"n_rows":71,"n_cols":3,"rows_kept":71,"cut":false,"hidden":false,"merged":[[0,0,0,13],[1,2,1,13],[2,0,2,13]]}
["Anleitung für das Arbeiten mit dem Laubenrechner (ab Version September 2016)\n\nDetailliertere Informationen in der Bedienungsanleitung \"Arbeiten mit dem Laubenrechner\". Diese kann von der Internetseite des Landesverbands heruntergeladen werden. Die im Laubenrechner angewendeten Werte sind an die Schätzerfibel in der Version September 2016 angepasst. \nErstmals ist es möglich, mit dem Laubenrechner Einfachlauben mit und ohne Fundament sowie Nurdachlauben zu bewerten.\nDer Laubenrechner ist als Excelvorlage abgespeichert. Wird er mit einem Doppelklick von Windows aus geöffnet, öffnet sich eine neue Datei mit dem Inhalt des Laubenrechners. Diese kann nach dem Ausdrucken einfach geschlossen werden. Der Vorteil dieses Verfahrens besteht darin, dass bei jedem Öffnen eine leere Datei zur Verfügung steht; man muss alsonicht erst  die alten Inhalte löschen.\nWill man mitder Abzugmethode arbeiten, kann man von Windows aus die Datei mit einem Rechtsklick öffnen (Nicht \"Neu\" auswählen!) und auf den Registerblättern die Normwerte auswählen bis der maximale Ausgangswert (z.B. 23) erreicht ist. Danach die Datei speichern."]
[null,null,"Wenn auf der rechten Seite des Tabellenblattes die Laubengröße und der jeweils aktuelle Bauindex eingetragen werden, kann der für das  ausgewählte Bauteil gültige Wert in Euro abgelesen werden.\nDies ist hilfreich, um zu erkennen, welche Beträge für die Bauteile bzw. welche Abzüge zum Ansatz kommen."]
["Die Abbildungen unten auf dieser Seite beziehen sich auf das Tabellenblatt \"Massivlaube\", sie gelten aber genauso für die anderen Tabellenblätter. Die eingebaute  Plausibilitätskontrolle kann zwar nicht erkennen, wenn etwas falsch ausgewählt wurde, macht aber darauf aufmerksam, dass etwas nicht stimmen kann. Dies wäre zum Beispiel der Fall, wenn sowohl Sattendach als auch Pultdach oder mehrere Eindeckungen ausgewählt wurden. Erkannt wird auch, wenn die Summe der Abzüge zu einem Bauteil größer ist als der Normalherstellungswert ist. Grundsätzlich darf niemals ein Eintrag rot hinterlegt sein! \nWichtig: Der Laubenrechner funktioniert nur dann wie beschrieben, wenn Makros zugelassen sind. Falls keine Makros zugelassen sind, funktioniert also der Doppelklick zum Aus- bzw. Abwählen der Einträge nicht. Dann muss hinter dem jeweils gewünschten Eintrag ein kleines \"x\" in der Spalte \"Auswahl\" eingetragen bzw. wieder entfernt werden. Ansonsten funktioniert der Laubenrechner ohne Makros, auch die Plausibilitätskontrolle arbeitet ohne Makros."]
[]
[]
[]
[]
[]
[]
[]
[]
[]
[]
[]
[]
[]
[]
[]
[]
[]
[]
[]
[]
[]
[]
[]
[]
[]
[]
[]
[]
[]
[]
[]
[]
[]
[]
[]
[]
[]
[]
[]
[]
[]
[]
[]
[]
[]
[]
[]
[]
[]
[]
[]
[]
[]
[]
[]
[]
[]
[]
[]
[]
[]
[]
[]
[]
[]
[]
[]
["© 2005 - 2018 Landesverband der Gartenfreunde Bremen e.V. --- Erstellt von Ewald Kuntze --- Anregungen, Ideen, Fehlermeldungen bitte an m.kleeberg@gartenfreunde-bremen.de "]

{"sheet":"Massivlaube","index":1,"n_rows":84,"n_cols":13,"rows_kept":84,"cut":false,"hidden":false,"merged":[[76,0,76,1],[74,2,74,4],[75,2,75,4],[76,2,76,4],[1,0,1,4],[73,0,73,4],[74,0,74,1],[75,0,75,1]]}
[null,null,null,null,null,null,null,"Ausgangs-\nwert","Abzüge","Rechen-\nwert",null,{"$f":"IF(K2=\"Wert\",\"Laubengröße\",\"\")","v":"Laubengröße"},{"$f":"IF(K2=\"Wert\",\"Bauindex\",\"\")","v":"Bauindex"}]
["Wertermittlung Massiv-Laube",null,null,null,null,null,null,{"$f":"C75","v":23},{"$f":"C76","v":0},{"$f":"C77","v":23},"Wert",24,28.372]
["lfd.\nNr.","Beschreibung","Normal-\nwert","Abzug","Aus-\nwahl",null,null,{"$f":"IF($K$2=\"Wert\",$L$2*$M$2*H2,\"\")","v":15661.343999999999},{"$f":"IF($K$2=\"Wert\",$L$2*$M$2*I2,\"\")","v":0},{"$f":"IF($K$2=\"Wert\",$L$2*$M$2*J2,\"\")","v":15661.343999999999}]
[1,"Fundament & Bodenplatte"]
["1.1","80 cm tiefes Streifenfundament mit 12 bis 15 cm Betonplatte",5,null,"x",null,null,null,null,{"$f":"IF(AND($K$2=\"Wert\",$E5=\"x\"),$L$2*$M$2*C5,\"\")","v":3404.64},{"$f":"IF(E5=\"x\",C5,0)","v":5}]
["1.2","Keine Betonplatte",null,3,null,null,null,null,null,null,{"$f":"IF(E6=\"x\",D6,0)","v":0}]
["1.2","Streifenfundament fehlt bei sandigen Böden",null,1,null,null,null,null,null,{"$f":"IF(AND($K$2=\"Wert\",$E7=\"x\"),$L$2*$M$2*D7,\"\")","v":""},{"$f":"IF(E7=\"x\",D7,0)","v":0}]
["1.3","Streifenfundament fehlt bei normalen Böden",null,2,null,null,null,null,null,{"$f":"IF(AND($K$2=\"Wert\",$E8=\"x\"),$L$2*$M$2*D8,\"\")","v":""},{"$f":"IF(E8=\"x\",D8,0)","v":0}]
["1.3","Fundamentoberkante erdgleich",null,2,null,null,null,null,null,{"$f":"IF(AND($K$2=\"Wert\",$E9=\"x\"),$L$2*$M$2*D9,\"\")","v":""},{"$f":"IF(E9=\"x\",D9,0)","v":0}]
["2","Isolierung des Fußbodens (Estrich)",null,null,null,null,null,null,null,{"$f":"IF(AND($K$2=\"Wert\",$E10=\"x\"),$L$2*$M$2*C10,\"\")","v":""}]
["2.1","Einwandfreier schwimmender Estrich auf Betonfundament",0.75,null,"x",null,null,null,null,{"$f":"IF(AND($K$2=\"Wert\",$E11=\"x\"),$L$2*$M$2*C11,\"\")","v":510.69600000000003},{"$f":"IF(E11=\"x\",C11,0)","v":0.75}]
["2.2","Einfacher Verbundestrich",null,0.25,null,null,null,null,null,{"$f":"IF(AND($K$2=\"Wert\",$E12=\"x\"),$L$2*$M$2*D12,\"\")","v":""},{"$f":"IF(E12=\"x\",D12,0)","v":0}]
["2.3","Stark gerissener schwimmender Estrich",null,0.5,null,25,null,null,null,{"$f":"IF(AND($K$2=\"Wert\",$E13=\"x\"),$L$2*$M$2*D13,\"\")","v":""},{"$f":"IF(E13=\"x\",D13,0)","v":0}]
["2.3","Durch Wasser durchnässter Estrich (Schaden aus 1.3)",null,0.75,null,null,null,null,null,{"$f":"IF(AND($K$2=\"Wert\",$E14=\"x\"),$L$2*$M$2*D14,\"\")","v":""},{"$f":"IF(E14=\"x\",D14,0)","v":0}]
["3","Umfassungswände",null,null,null,null,null,null,null,{"$f":"IF(AND($K$2=\"Wert\",$E15=\"x\"),$L$2*$M$2*C15,\"\")","v":""}]
["3.1","Außenwände aus 11,5 cm Mauerwerk (1/2-Stein), lotrecht gemauert, vom Fundament durch eine Isolierschicht getrennt. Raumhöhe mindestens 2,10 m, Wände beiderseitig verputzt.",4,null,"x",null,null,null,"Stufung",{"$f":"IF(AND($K$2=\"Wert\",$E16=\"x\"),$L$2*$M$2*C16,\"\")","v":2723.712},{"$f":"IF(E16=\"x\",C16,0)","v":4}]
["3.2","Raumhöhe niedriger als 2,10 m (0,15 pro fehlenden 10 cm)",null,{"$f":"F17*0.01","v":0.15},null,15,null,"0,15-0,75",0.15,{"$f":"IF(AND($K$2=\"Wert\",$E17=\"x\"),$L$2*$M$2*D17,\"\")","v":""},{"$f":"IF(E17=\"x\",D17,0)","v":0}]
["3.3","Wände gerissen",null,{"$f":"F18*0.01","v":0.25},null,25,null,"0,25-0,50",0.05,{"$f":"IF(AND($K$2=\"Wert\",$E18=\"x\"),$L$2*$M$2*D18,\"\")","v":""},{"$f":"IF(E18=\"x\",D18,0)","v":0}]
["3.3","Wände stark gerissen, klaffende Risse im Bereich von Öffnungen\nund Gebäudeöffnungen (Schäden aus 1.3)",null,{"$f":"F19*0.01","v":1},null,100,null,"1,00 - 2,00",0.25,{"$f":"IF(AND($K$2=\"Wert\",$E19=\"x\"),$L$2*$M$2*D19,\"\")","v":""},{"$f":"IF(E19=\"x\",D19,0)","v":0}]
["3.3","Wände sind feucht (Schäden aus 1.3)",null,{"$f":"F20*0.01","v":0.5},null,50,null,"0,50-1,00",0.05,{"$f":"IF(AND($K$2=\"Wert\",$E20=\"x\"),$L$2*$M$2*D20,\"\")","v":""},{"$f":"IF(E20=\"x\",D20,0)","v":0}]
["3.3","Wände sichtbar nicht lotrecht gemauert",null,{"$f":"F21*0.01","v":0.5},null,50,null,"0,50-1,50",0.05,{"$f":"IF(AND($K$2=\"Wert\",$E21=\"x\"),$L$2*$M$2*D21,\"\")","v":""},{"$f":"IF(E21=\"x\",D21,0)","v":0}]
["4","Außen- und Innenputz / Außenanstrich",null,null,null,null,null,null,null,{"$f":"IF(AND($K$2=\"Wert\",$E22=\"x\"),$L$2*$M$2*C22,\"\")","v":""}]
["4.1","Putz ist fluchtgerecht und frei von Unebenheiten. Oberfläche muss für Aufnahme eines Farbanstrichs geeignet sein.",null,null,null,null,null,null,null,{"$f":"IF(AND($K$2=\"Wert\",$E23=\"x\"),$L$2*$M$2*C23,\"\")","v":""}]
[null,"Außenputz",1.5,null,"x",null,null,null,null,{"$f":"IF(AND($K$2=\"Wert\",$E24=\"x\"),$L$2*$M$2*C24,\"\")","v":1021.3920000000001},{"$f":"IF(E24=\"x\",C24,0)","v":1.5}]
[null,"Innenputz",1.25,null,"x",null,null,null,null,{"$f":"IF(AND($K$2=\"Wert\",$E25=\"x\"),$L$2*$M$2*C25,\"\")","v":851.16},{"$f":"IF(E25=\"x\",C25,0)","v":1.25}]
["4.2","Putz sandet ab oder Putz ist sichtbar zu dünn (Mauerwerk erkennbar)",null,0.5,null,null,null,null,null,{"$f":"IF(AND($K$2=\"Wert\",$E26=\"x\"),$L$2*$M$2*D26,\"\")","v":""},{"$f":"IF(E26=\"x\",D26,0)","v":0}]
["4.3","Putz ist teilweise lose. Je betroffener Wand 0,25 Abzug",null,{"$f":"F27*0.01","v":0.25},null,25,null,"0,25-1,00",0.25,{"$f":"IF(AND($K$2=\"Wert\",$E27=\"x\"),$L$2*$M$2*D27,\"\")","v":""},{"$f":"IF(E27=\"x\",D27,0)","v":0}]
["4.3","Durchfeuchtung des Sockelbereichs (Schäden aus 1.3)",null,{"$f":"F28*0.01","v":0.5},null,50,null,"0,50-1,00",0.5,{"$f":"IF(AND($K$2=\"Wert\",$E28=\"x\"),$L$2*$M$2*D28,\"\")","v":""},{"$f":"IF(E28=\"x\",D28,0)","v":0}]
[null,"Außenanstrich",null,null,null,null,null,null,null,{"$f":"IF(AND($K$2=\"Wert\",$E29=\"x\"),$L$2*$M$2*C29,\"\")","v":""}]
["4.1a","Handwerksgerechter mehrmaliger Anstrich auf vorbehandeltem Putz. Anstrich darf an keiner Stelle abblättern.",0.75,null,"x",125,null,null,null,{"$f":"IF(AND($K$2=\"Wert\",$E30=\"x\"),$L$2*$M$2*C30,\"\")","v":510.69600000000003},{"$f":"IF(E30=\"x\",C30,0)","v":0.75}]
["4.2a","Anstrich ist älter als vier Jahre, Abzug 0,25 pro Jahr",null,{"$f":"F31*0.01","v":0.25},null,25,null,"0,25-0,75",0.25,{"$f":"IF(AND($K$2=\"Wert\",$E31=\"x\"),$L$2*$M$2*D31,\"\")","v":""},{"$f":"IF(E31=\"x\",D31,0)","v":0}]
["4.3a","Anstrich blättert ab und muss erneuert werden",null,0.75,null,25,null,null,null,{"$f":"IF(AND($K$2=\"Wert\",$E32=\"x\"),$L$2*$M$2*D32,\"\")","v":""},{"$f":"IF(E32=\"x\",D32,0)","v":0}]
["5","Innenwand",null,null,null,null,null,null,null,{"$f":"IF(AND($K$2=\"Wert\",$E33=\"x\"),$L$2*$M$2*C33,\"\")","v":""}]
["5.1","Abtrennung vom Aufenthalts- zum Geräteraum aus 11,5 cm Mauerwerk (1/2-Stein), lotrecht gemauert und beiderseitig verputzt.",1,null,"x",null,null,null,null,{"$f":"IF(AND($K$2=\"Wert\",$E34=\"x\"),$L$2*$M$2*C34,\"\")","v":680.928},{"$f":"IF(E34=\"x\",C34,0)","v":1}]
["5.2","Nur einseitig verputzt oder verschalt",null,0.15,null,null,null,null,null,{"$f":"IF(AND($K$2=\"Wert\",$E35=\"x\"),$L$2*$M$2*D35,\"\")","v":""},{"$f":"IF(E35=\"x\",D35,0)","v":0}]
["5.3","Innenwand minderwertig ausgeführt (stark gerissen, nicht lotrecht)",null,0.25,null,null,null,null,null,{"$f":"IF(AND($K$2=\"Wert\",$E36=\"x\"),$L$2*$M$2*D36,\"\")","v":""},{"$f":"IF(E36=\"x\",D36,0)","v":0}]
["6","Deckenverkleidung & Wärmeisolierung",null,null,null,null,null,null,null,{"$f":"IF(AND($K$2=\"Wert\",$E37=\"x\"),$L$2*$M$2*C37,\"\")","v":""}]
["6.1","Deckenverkleidung aus Profilholz (1,00) bzw. Gipskartonplatten (0,50)",1,{"$f":"F38*0.01","v":0},"x",0,null,"0,00-0,50",0.5,{"$f":"IF(AND($K$2=\"Wert\",$E38=\"x\"),$L$2*$M$2*(C38-D38),\"\")","v":680.928},{"$f":"IF(E38=\"x\",C38-D38,0)","v":1}]
["6.2","Verwendung noch einfacherer Baustoffe (z. B. Kurzlängen bei Profilholz)",null,{"$f":"F39*0.01","v":0.25},null,25,null,"0,25-0,50",0.05,{"$f":"IF(AND($K$2=\"Wert\",$E39=\"x\"),$L$2*$M$2*D39,\"\")","v":""},{"$f":"IF(E39=\"x\",D39,0)","v":0}]
["6.3","Mangelnde Anbringung, offene Fugen usw.",null,0.25,null,null,null,null,null,{"$f":"IF(AND($K$2=\"Wert\",$E40=\"x\"),$L$2*$M$2*D40,\"\")","v":""},{"$f":"IF(E40=\"x\",D40,0)","v":0}]
[null,"Isolierung",null,null,null,null,null,null,null,{"$f":"IF(AND($K$2=\"Wert\",$E41=\"x\"),$L$2*$M$2*C41,\"\")","v":""}]
["6.1a","Decke isoliert, Stärke ca. 10 cm",0.5,null,"x",null,null,null,null,{"$f":"IF(AND($K$2=\"Wert\",$E42=\"x\"),$L$2*$M$2*C42,\"\")","v":340.464},{"$f":"IF(E42=\"x\",C42,0)","v":0.5}]
["6.2a","Stärke der Isolierung nur ca. 5 cm",null,0.1,null,null,null,null,null,{"$f":"IF(AND($K$2=\"Wert\",$E43=\"x\"),$L$2*$M$2*D43,\"\")","v":""},{"$f":"IF(E43=\"x\",D43,0)","v":0}]
["7","Fenster und Türen",2,{"$f":"SUMIF($E$48:$E$52,\"\",$C$48:$C$52)","v":0},"x",null,null,null,null,{"$f":"IF(AND($K$2=\"Wert\",$E44=\"x\"),$L$2*$M$2*C44,\"\")","v":1361.856},{"$f":"IF(E44=\"x\",C44,0)","v":2}]
[null,"Handwerksgerecht erstellte Fenster in Normabmessungen",null,null,null,null,null,null,null,{"$f":"IF(AND($K$2=\"Wert\",$E45=\"x\"),$L$2*$M$2*C45,\"\")","v":""},{"$f":"IF(E44=\"x\",D44,0)","v":0}]
[null,"Nicht zu öffnende Fenster werden nicht berücksichtigt",null,null,null,null,null,null,null,{"$f":"IF(AND($K$2=\"Wert\",$E46=\"x\"),$L$2*$M$2*C46,\"\")","v":""}]
[null,"Bei Altbauteilen wird ein Abzug bis zu 50 % vorgenommen",null,null,null,null,null,null,null,{"$f":"IF(AND($K$2=\"Wert\",$E47=\"x\"),$L$2*$M$2*C47,\"\")","v":""}]
["7.1","Haustür",0.75,{"$f":"F48*0.01","v":0},"x",0,null,"0,00-0,30",0.05,{"$f":"IF(AND($K$2=\"Wert\",$E48=\"x\"),$L$2*$M$2*(C48-D48),\"\")","v":510.69600000000003}]
["7.1","Nebentür",0.5,{"$f":"F49*0.01","v":0},"x",0,null,"0,00-0,25",0.05,{"$f":"IF(AND($K$2=\"Wert\",$E49=\"x\"),$L$2*$M$2*(C49-D49),\"\")","v":340.464}]
["7.1","Großes Fenster",0.3,{"$f":"F50*0.01","v":0},"x",null,null,"0,00-0,15",0.05,{"$f":"IF(AND($K$2=\"Wert\",$E50=\"x\"),$L$2*$M$2*(C50-D50),\"\")","v":204.2784}]
["7.1","Großes Fenster",0.3,{"$f":"F51*0.01","v":0},"x",0,null,"0,00-0,15",0.05,{"$f":"IF(AND($K$2=\"Wert\",$E51=\"x\"),$L$2*$M$2*(C51-D51),\"\")","v":204.2784}]
["7.1","Kleines Fenster",0.15,{"$f":"F52*0.01","v":0},"x",0,null,"0,00-0,07",0.01,{"$f":"IF(AND($K$2=\"Wert\",$E52=\"x\"),$L$2*$M$2*(C52-D52),\"\")","v":102.1392}]
["7.3","Der Farbanstrich der Fenster ist mangelhaft",null,0.1,null,null,null,null,null,null,{"$f":"IF(E53=\"x\",D53,0)","v":0}]
["7.3","Fensterbänke, Rahmen und Flügel sind durch mangelnde Pflege in ihrer Funktion beeinträchtigt  - dadurch bis zu 50 % Abzug",null,{"$f":"F54*0.01","v":0},null,0,null,"0,00-1,00",0.25,{"$f":"IF(AND($K$2=\"Wert\",$E54=\"x\"),$L$2*$M$2*(C54-D54),\"\")","v":""},{"$f":"IF(E54=\"x\",D54,0)","v":0}]
["8","Dach / Entwässerung",null,null,null,null,null,null,null,{"$f":"IF(AND($K$2=\"Wert\",$E55=\"x\"),$L$2*$M$2*C55,\"\")","v":""}]
[null,"Satteldach\neinfache, handwerksgerechte Konstruktion aus Bauholz der Güteklasse 2, die den statischen Erfordernissen entspricht. Holz muss imprägniert sein. Eindeckung Pfannen auf Latten mit Folie oder aus Pappschindeln mit Unterbau auf Schalung. Dachraum muss nutzbar sein.",null,null,null,null,null,null,null,{"$f":"IF(AND($K$2=\"Wert\",$E56=\"x\"),$L$2*$M$2*C56,\"\")","v":""},{"$f":"IF(E56=\"x\",C56,0)","v":0}]
["8.1","Satteldach wie vorstehend beschrieben mit Pfannenendeckung",5.25,null,"x",null,null,null,null,null,{"$f":"IF(E57=\"x\",C57,0)","v":5.25}]
["8.2","Holzkonstruktion aus altem Bauholz",null,{"$f":"F58*0.01","v":0.5},null,50,null,"0,50-1,00",0.05,{"$f":"IF(AND($K$2=\"Wert\",$E58=\"x\"),$L$2*$M$2*D58,\"\")","v":""},{"$f":"IF(E58=\"x\",D58,0)","v":0}]
["8.2","Eindeckung aus Wellzement oder ähnlichem Material",null,1.25,null,125,null,"1,25-1,50",0.05,"",0]
["8.2","Dachraum nicht nutzbar",null,0.25,null,25,null,"0,25-0,50",0.05,"",0]
["8.2","Eindeckung aus Dachbahnen",null,1.5,null,150,null,"1,50-1,75",0.05,"",0]
["8.3","Windfedern fehlen (je Windfeder 0,05)",null,0.05,null,5,null,"0,05-0,20",0.05,{"$f":"IF(AND($K$2=\"Wert\",$E62=\"x\"),$L$2*$M$2*D62,\"\")","v":""},{"$f":"IF(E62=\"x\",D62,0)","v":0}]
["8.3","Fehlerhafte Anwendung des Materials, z. B. zu geringe Dachneigung, genagelte Dachbahnen, wellige Dachbahnen",null,0.25,null,25,null,"0,25-1,25",0.05,"",0]
["8.3","Eindeckung aus Asbestzement (1,00 + 0,50 je Dachseite)",null,1.5,null,150,null,"1,50-2,00",0.5,"",0]
["8.3","Rinnen fehlen bzw. ohne Funktion (0,25 je Rinne)",null,0.25,null,25,null,"0,25-0,50",0.25,"",0]
["8.1a","Pultdach\nBalkenlage mit Isolierung, Schalung und Regenhaut",1.75,null,null,125,null,null,null,{"$f":"IF(AND($K$2=\"Wert\",$E66=\"x\"),$L$2*$M$2*C66,\"\")","v":""},{"$f":"IF(E66=\"x\",C66,0)","v":0}]
["8.2a","Holzkonstruktion aus altem Bauholz",null,{"$f":"F67*0.01","v":0.5},null,50,null,"0,50-1,25",0.05,{"$f":"IF(AND($K$2=\"Wert\",$E67=\"x\"),$L$2*$M$2*D67,\"\")","v":""},{"$f":"IF(E67=\"x\",D67,0)","v":0}]
["8.2a","Eindeckung aus Wellzement oder ähnlichem Material",null,0.25,null,25,null,"0,25-0,50",0.05,{"$f":"IF(AND($K$2=\"Wert\",$E68=\"x\"),$L$2*$M$2*D68,\"\")","v":""},{"$f":"IF(E68=\"x\",D68,0)","v":0}]
["8.2a","Eindeckung aus Dachbahnen",null,0.5,null,50,null,"0,50-0,75",0.05,{"$f":"IF(AND($K$2=\"Wert\",$E69=\"x\"),$L$2*$M$2*D69,\"\")","v":""},{"$f":"IF(E69=\"x\",D69,0)","v":0}]
["8.3a","Windfedern fehlen (je Windfeder 0,05)",null,{"$f":"F70*0.01","v":0.05},null,5,null,"0,05-0,20",0.05,{"$f":"IF(AND($K$2=\"Wert\",$E70=\"x\"),$L$2*$M$2*D70,\"\")","v":""},{"$f":"IF(E70=\"x\",D70,0)","v":0}]
["8.3a","Fehlerhafte Anwendung des Materials, z. B. zu geringe Dachneigung, genagelte Dachbahnen, wellige Dachbahnen",null,{"$f":"F71*0.01","v":0.25},null,25,null,"0,25-1,25",0.25,{"$f":"IF(AND($K$2=\"Wert\",$E71=\"x\"),$L$2*$M$2*D71,\"\")","v":""},{"$f":"IF(E71=\"x\",D71,0)","v":0}]
["8.3a","Eindeckung aus Asbestzement\n(Hier können gesonderte Entsorgungskosten entstehen)",null,0.5,null,null,null,null,null,{"$f":"IF(AND($K$2=\"Wert\",$E72=\"x\"),$L$2*$M$2*D72,\"\")","v":""},{"$f":"IF(E72=\"x\",D72,0)","v":0}]
["8.3a","Rinne fehlt bzw. ohne Funktion ",null,0.25,null,null,null,null,null,{"$f":"IF(AND($K$2=\"Wert\",$E73=\"x\"),$L$2*$M$2*D73,\"\")","v":""},{"$f":"IF(E73=\"x\",D73,0)","v":0}]
[]
["Ausgangswert",null,{"$f":"SUMIF($E$4:$E$44,\"x\",$C$4:$C$44)+SUMIF($E$56:$E$73,\"x\",$C$56:$C$73)","v":23}]
["Abzüge",null,{"$f":"SUMIF($E$4:$E$73,\"x\",$D$4:$D$73)","v":0}]
["Rechenwert",null,{"$f":"C75-C76","v":23}]
[]
[]
[null,"Datum der Schätzung:"]
[]
[null,"Pächter:"]
[]
[null,"Gartenadresse:"]

{"sheet":"Holzlaube (Standard)","index":2,"n_rows":85,"n_cols":13,"rows_kept":85,"cut":false,"hidden":false,"merged":[[1,0,1,4],[74,0,74,4],[75,0,75,1],[76,0,76,1],[77,0,77,1],[75,2,75,4],[76,2,76,4],[77,2,77,4]]}
[null,null,null,null,null,null,null,"Ausgangs-\nwert","Abzüge","Rechen-\nwert",null,{"$f":"IF(K2=\"Wert\",\"Laubengröße\",\"\")","v":"Laubengröße"},{"$f":"IF(K2=\"Wert\",\"Bauindex\",\"\")","v":"Bauindex"}]
["Wertermittlung Holz-Laube (Standard)",null,null,null,null,null,null,{"$f":"C76","v":23},{"$f":"C77","v":0},{"$f":"C78","v":23},"Wert",24,27.795000000000002]
["lfd.\nNr.","Beschreibung","Normal-\nwert","Abzug","Aus-\nwahl",null,null,{"$f":"IF($K$2=\"Wert\",$L$2*$M$2*H2,\"\")","v":15342.84},{"$f":"IF($K$2=\"Wert\",$L$2*$M$2*I2,\"\")","v":0},{"$f":"IF($K$2=\"Wert\",$L$2*$M$2*J2,\"\")","v":15342.84}]
[1,"Fundament & Bodenplatte"]
["1.1","80 cm tiefes Streifenfundament mit 12 bis 15 cm Betonplatte",5,null,"x",null,null,null,null,{"$f":"IF(AND($K$2=\"Wert\",$E5=\"x\"),$L$2*$M$2*C5,\"\")","v":3335.4},{"$f":"IF(E5=\"x\",C5,0)","v":5}]
["1.2","Statt der Betonplatte Lagerhölzer auf Streifenfundament und Hobeldielen oder Fußbodenplatten 24 mm (Spanplatten V100)",null,2.5,null,null,null,null,null,{"$f":"IF(AND($K$2=\"Wert\",$E6=\"x\"),$L$2*$M$2*D6,\"\")","v":""},{"$f":"IF(E6=\"x\",D6,0)","v":0}]
["1.2","Nur Sockelsteine mit Lagerhölzern, sonst wie vorstehend",null,3.5,null,null,null,null,null,{"$f":"IF(AND($K$2=\"Wert\",$E7=\"x\"),$L$2*$M$2*D7,\"\")","v":""},{"$f":"IF(E7=\"x\",D7,0)","v":0}]
["1.2","Streifenfundament fehlt bei sandigen Böden",null,2,null,null,null,null,null,null,{"$f":"IF(E8=\"x\",D8,0)","v":0}]
["1.3","Fehlt das Streifenfundament bei normalen Böden, ist das Fundament durch Frost gefährdet",null,3,null,null,null,null,null,null,{"$f":"IF(E9=\"x\",D9,0)","v":0}]
["1.3","Fundamentoberkante erdgleich. ",null,2,null,null,null,null,null,{"$f":"IF(AND($K$2=\"Wert\",$E10=\"x\"),$L$2*$M$2*D10,\"\")","v":""},{"$f":"IF(E10=\"x\",D10,0)","v":0}]
["2","Isolierung des Fußbodens (Estrich)"]
["2.1","Ein einwandfreier schwimmender Estrich auf Betonplatte oder\nLagerhölzer 10 cm mit Isolierung und Hobeldielen oder \nFußbodenplatten 24 mm (Spanplatten V100)",0.75,null,"x",null,null,null,null,{"$f":"IF(AND($K$2=\"Wert\",$E12=\"x\"),$L$2*$M$2*C12,\"\")","v":500.31000000000006},{"$f":"IF(E12=\"x\",C12,0)","v":0.75}]
["2.2","Einfacher Verbundestrich auf einem Betonfundament",null,0.25,null,null,null,null,null,null,{"$f":"IF(E13=\"x\",D13,0)","v":0}]
["2.2","Fehlende Isolierung unter den Hobeldielen oder Fußbodenplatten",null,0.75,null,75,null,null,null,{"$f":"IF(AND($K$2=\"Wert\",$E14=\"x\"),$L$2*$M$2*D14,\"\")","v":""},0]
["2.3","Stark gerissener schwimmender Estrich",null,0.5,null,null,null,null,null,{"$f":"IF(AND($K$2=\"Wert\",$E15=\"x\"),$L$2*$M$2*D15,\"\")","v":""},0]
["2.3","Durch Wasser durchnässter Estrich (Schaden aus 1.3)",null,0.75,null,null,null,null,null,{"$f":"IF(AND($K$2=\"Wert\",$E16=\"x\"),$L$2*$M$2*D16,\"\")","v":""},0]
["2.3","Stärke der Fußbodenplatten zu gering oder Abstand der Lagerhölzer zu groß. Boden biegt bei Belastung merklich durch.",null,0.5,null,null,null,null,null,{"$f":"IF(AND($K$2=\"Wert\",$E17=\"x\"),$L$2*$M$2*D17,\"\")","v":""},0]
["2.3","Isolierung ist feucht",null,0.75,null,null,null,null,null,{"$f":"IF(AND($K$2=\"Wert\",$E18=\"x\"),$L$2*$M$2*D18,\"\")","v":""},0]
["3","Umfassungswände"]
["3.1","Holzgerüst aus Kanthölzern der Güteklasse 2, mind. 8 x 8 cm, mit ausr. Schubaussteifung sowie Ober- und Untergurten.Gerüst muss auf einem gegen Feuchtigkeit isolierten Sockel stehen. Holz muss imprägniert sein. Ständerabstand max. 70 cm. Öffnungen und Fugen sind so zu verleisten, dass eingedrungenes Wasser problemlos ablaufen kann. Wände außen 19,5 mm Nut- und Federholz, innen \n12,5 mm oder Spanplatten gleicher Stärke.",6.5,null,"x",null,null,null,"Stufung",{"$f":"IF(AND($K$2=\"Wert\",$E20=\"x\"),$L$2*$M$2*C20,\"\")","v":4336.0200000000004},{"$f":"IF(E20=\"x\",C20,0)","v":6.5}]
["3.2","Außenschalung statt 19,5 nur 12,5 mm",null,{"$f":"F21*0.01","v":0.75},null,75,null,"0,75-1,25",0.05,{"$f":"IF(AND($K$2=\"Wert\",$E21=\"x\"),$L$2*$M$2*D21,\"\")","v":""},{"$f":"IF(E21=\"x\",D21,0)","v":0}]
["3.2","Außenschalung erkennbar 3. Wahl",null,{"$f":"F22*0.01","v":0.75},null,75,null,"0,75-1,25",0.05,"",0]
["3.2","Statt Profilholz verputzte Leichtbauplatten",null,{"$f":"F23*0.01","v":0.5},null,50,null,"0,50-1,00",0.05,"",0]
["3.2","Ständerabstand größer 70 cm",null,{"$f":"F24*0.01","v":0.25},null,25,null,"0,25-1,25",0.05,"",0]
["3.2","Holzkonstruktion aus altem Bauholz",null,{"$f":"F25*0.01","v":0.75},null,75,null,"0,75-1,50",0.05,"",0]
["3.3","Öffnungen und Fugen nicht verleistet",null,1,null,null,null,null,null,"",0]
["3.3","Abstand Schalung bis Oberkante Gelände kleiner als 15 cm",null,2,null,null,null,null,null,"",0]
["3.3","Nicht handwerksgerechte Anbringung der Außenschalung, welches zum Entfernen der gesamten Schalung zwingt.",null,{"$f":"F28*0.01","v":2},null,200,null,"2,00-3,00",0.25,"",0]
["4","Außenanstrich"]
["4.1","Mehrmaliger Anstrich mit Anstrichmittel, welches Holzteile sowohl gegen Feuchtigkeit als auch gegen Schädlinge schützt",1,null,"x",125,null,null,null,{"$f":"IF(AND($K$2=\"Wert\",$E30=\"x\"),$L$2*$M$2*C30,\"\")","v":667.08},{"$f":"IF(E30=\"x\",C30,0)","v":1}]
["4.2","Anstrich ist älter als vier Jahre, Abzug 0,25 pro Jahr",null,{"$f":"F31*0.01","v":0.25},null,25,null,"0,25-1,00",0.25,{"$f":"IF(AND($K$2=\"Wert\",$E31=\"x\"),$L$2*$M$2*D31,\"\")","v":""},{"$f":"IF(E31=\"x\",D31,0)","v":0}]
["4.3","Anstrich blättert ab und muss erneuert werden (0,25 je Seite)",null,{"$f":"F32*0.01","v":0.5},null,50,null,"0,25-0,75",0.25,{"$f":"IF(AND($K$2=\"Wert\",$E32=\"x\"),$L$2*$M$2*D32,\"\")","v":""},{"$f":"IF(E32=\"x\",D32,0)","v":0}]
["5","Innenwand"]
["5.1","Innenwand muss konstruktiv wie die Außenwände ausgeführt sein",1,null,"x",null,null,null,null,{"$f":"IF(AND($K$2=\"Wert\",$E34=\"x\"),$L$2*$M$2*C34,\"\")","v":667.08},{"$f":"IF(E34=\"x\",C34,0)","v":1}]
["5.2","Nur einseitig verschalt",null,0.25,null,null,null,null,null,{"$f":"IF(AND($K$2=\"Wert\",$E35=\"x\"),$L$2*$M$2*D35,\"\")","v":""},{"$f":"IF(E35=\"x\",D35,0)","v":0}]
["5.2","Verkleidung aus qualitativ minderwertigen Materialien",null,0.25,null,null,null,null,null,{"$f":"IF(AND($K$2=\"Wert\",$E36=\"x\"),$L$2*$M$2*D36,\"\")","v":""},{"$f":"IF(E36=\"x\",D36,0)","v":0}]
["5.3","Ständerabstand größer als 70 cm",null,0.25,null,null,null,null,null,{"$f":"IF(AND($K$2=\"Wert\",$E37=\"x\"),$L$2*$M$2*D37,\"\")","v":""},{"$f":"IF(E37=\"x\",D37,0)","v":0}]
["6","Deckenverkleidung & Wärmeisolierung"]
["6.1","Deckenverkleidung aus einfachem Profilholz oder Gipskartonplatten.\nDie vier Außenwände sowie die Decke sind gegen Wärme und Kälte zu isolieren. Mindeststärke der Isolierung 6 cm. Je nach Material ist darauf zu achten, dass eine Durchfeuchtung ausgeschlossen ist.\nBei Pultdachlauben entfällt die Isolierung, da im Dach vorhanden.",1.5,null,"x",null,null,null,null,{"$f":"IF(AND($K$2=\"Wert\",$E39=\"x\"),$L$2*$M$2*C39,\"\")","v":1000.6200000000001},{"$f":"IF(E39=\"x\",C39,0)","v":1.5}]
["6.2","Deckenverkleidung aus Gipskartonplatten",null,0.25,null,50,null,null,null,{"$f":"IF(AND($K$2=\"Wert\",$E40=\"x\"),$L$2*$M$2*D40,\"\")","v":""},{"$f":"IF(E40=\"x\",D40,0)","v":0}]
["6.2","Stärke der Isolierung nur ca. 5 cm (0,1 je Teilbereich)",null,{"$f":"F41*0.01","v":0.1},null,10,null,"0,10-0,50",0.1,{"$f":"IF(AND($K$2=\"Wert\",$E41=\"x\"),$L$2*$M$2*D41,\"\")","v":""},{"$f":"IF(E41=\"x\",D41,0)","v":0}]
["6.2","Verwendung einfacherer Baustoffe (z. B. Kurzlängen bei Profilholz)",null,{"$f":"F42*0.01","v":0.25},null,25,null,"0,25-0,50",0.05,{"$f":"IF(AND($K$2=\"Wert\",$E42=\"x\"),$L$2*$M$2*D42,\"\")","v":""},{"$f":"IF(E42=\"x\",D42,0)","v":0}]
["6.3","Mangelnde Anbringung, offene Fugen usw.",null,0.25,null,null,null,null,null,null,{"$f":"IF(E43=\"x\",D43,0)","v":0}]
["6.3","Durch Schäden in der Außenverkleidung sind Teile der Isolierung durchfeuchtet.",null,0.25,null,null,null,null,null,null,{"$f":"IF(E44=\"x\",D44,0)","v":0}]
["7","Fenster und Türen",2,{"$f":"SUMIF($E$49:$E$53,\"\",$C$49:$C$53)","v":0},"x",null,null,null,null,{"$f":"IF(AND($K$2=\"Wert\",$E45=\"x\"),$L$2*$M$2*C45,\"\")","v":1334.16},{"$f":"IF(E45=\"x\",C45,0)","v":2}]
[null,"Handwerksgerecht erstellte Fenster in Normabmessungen",null,null,null,null,null,null,null,null,{"$f":"IF(E45=\"x\",D45,0)","v":0}]
[null,"Nicht zu öffnende Fenster werden nicht berücksichtigt"]
[null,"Bei Altbauteilen wird ein Abzug bis zu 50 % vorgenommen"]
["7.1","Haustür",0.75,{"$f":"F49*0.01","v":0},"x",0,null,"0,00-0,30",0.05,{"$f":"IF(AND($K$2=\"Wert\",$E49=\"x\"),$L$2*$M$2*(C49-D49),\"\")","v":500.31000000000006}]
["7.1","Nebentür",0.5,{"$f":"F50*0.01","v":0},"x",0,null,"0,00-0,25",0.05,{"$f":"IF(AND($K$2=\"Wert\",$E50=\"x\"),$L$2*$M$2*(C50-D50),\"\")","v":333.54}]
["7.1","Großes Fenster",0.3,{"$f":"F51*0.01","v":0},"x",null,null,"0,00-0,15",0.05,{"$f":"IF(AND($K$2=\"Wert\",$E51=\"x\"),$L$2*$M$2*(C51-D51),\"\")","v":200.124}]
["7.1","Großes Fenster",0.3,{"$f":"F52*0.01","v":0},"x",0,null,"0,00-0,15",0.05,{"$f":"IF(AND($K$2=\"Wert\",$E52=\"x\"),$L$2*$M$2*(C52-D52),\"\")","v":200.124}]
["7.1","Kleines Fenster",0.15,{"$f":"F53*0.01","v":0},"x",null,null,"0,00-0,07",0.01,{"$f":"IF(AND($K$2=\"Wert\",$E53=\"x\"),$L$2*$M$2*(C53-D53),\"\")","v":100.062}]
["7.3","Der Farbanstrich der Fenster ist mangelhaft",null,0.1,null,null,null,null,null,null,{"$f":"IF(E54=\"x\",D54,0)","v":0}]
["7.3","Fensterbänke, Rahmen und Flügel sind durch mangelnde Pflege in ihrer Funktion beeinträchtigt  - dadurch bis zu 50 % Abzug",null,{"$f":"F55*0.01","v":1},null,100,null,"0,00-1,00",0.05,{"$f":"IF(AND($K$2=\"Wert\",$E55=\"x\"),$L$2*$M$2*D55,\"\")","v":""},{"$f":"IF(E55=\"x\",D55,0)","v":0}]
["8","Dach / Entwässerung"]
[null,"Satteldach\neinfache, handwerksgerechte Konstruktion aus Bauholz der Güteklasse 2, die den statischen Erfordernissen entspricht. Holz muss imprägniert sein. Eindeckung Pfannen auf Latten mit Folie oder aus Pappschindeln mit Unterbau auf Schalung. Dachraum muss nutzbar sein.",null,null,null,null,null,null,null,{"$f":"IF(AND($K$2=\"Wert\",$E57=\"x\"),$L$2*$M$2*C57,\"\")","v":""},{"$f":"IF(E57=\"x\",C57,0)","v":0}]
["8.1","Satteldach wie vorstehend beschrieben mit Pfannenendeckung",5.25,null,"x",null,null,null,null,null,{"$f":"IF(E58=\"x\",C58,0)","v":5.25}]
["8.2","Holzkonstruktion aus altem Bauholz",null,{"$f":"F59*0.01","v":0.5},null,50,null,"0,50-1,00",0.1,{"$f":"IF(AND($K$2=\"Wert\",$E59=\"x\"),$L$2*$M$2*D59,\"\")","v":""},{"$f":"IF(E59=\"x\",D59,0)","v":0}]
["8.2","Eindeckung aus Wellzement oder ähnlichem Material",null,1.25,null,125,null,"1,25-1,50",0.05,"",0]
["8.2","Dachraum nicht nutzbar",null,0.25,null,25,null,"0,25-0,50",0.05,"",0]
["8.2","Eindeckung aus Dachbahnen",null,1.5,null,150,null,"1,50-1,75",0.05,"",0]
["8.3","Windfedern fehlen (je Findfeder 0,05)",null,0.05,null,5,null,"0,05-0,20",0.05,{"$f":"IF(AND($K$2=\"Wert\",$E63=\"x\"),$L$2*$M$2*D63,\"\")","v":""},{"$f":"IF(E63=\"x\",D63,0)","v":0}]
["8.3","Fehlerhafte Anwendung des Materials, z. B. zu geringe Dachneigung, genagelte Dachbahnen, wellige Dachbahnen",null,0.25,null,25,null,"0,25-1,25",0.05,"",0]
["8.3","Eindeckung aus Asbestzement\n(Hier können gesonderte Entsorgungskosten entstehen)",null,1.5,null,150,null,"1,50-2,00",0.5,"",0]
["8.3","Rinnen fehlen bzw. ohne Funktion (0,25 je Rinne)",null,0.25,null,25,null,"0,25-0,50",0.25,"",0]
["8.1a","Pult- oder Flachdach\nBalkenlage mit Isolierung, Schalung und Regenhaut",1.75,null,null,125,null,null,null,{"$f":"IF(AND($K$2=\"Wert\",$E67=\"x\"),$L$2*$M$2*C67,\"\")","v":""},{"$f":"IF(E67=\"x\",C67,0)","v":0}]
["8.2a","Konstruktion aus altem Bauholz",null,0.5,null,50,null,"0,50-1,25",0.05,{"$f":"IF(AND($K$2=\"Wert\",$E68=\"x\"),$L$2*$M$2*D68,\"\")","v":""},0]
["8.2a","Eindeckung aus Wellzement oder ähnlichem Material",null,0.25,null,25,null,"0,25-0,50",0.05,{"$f":"IF(AND($K$2=\"Wert\",$E69=\"x\"),$L$2*$M$2*D69,\"\")","v":""},{"$f":"IF(E69=\"x\",D69,0)","v":0}]
["8.2a","Eindeckung aus Dachbahnen",null,0.5,null,50,null,"0,50-0,75",0.05,{"$f":"IF(AND($K$2=\"Wert\",$E70=\"x\"),$L$2*$M$2*D70,\"\")","v":""},{"$f":"IF(E70=\"x\",D70,0)","v":0}]
["8.3a","Windfedern fehlen (je Findfeder 0,05)",null,0.05,null,5,null,"0,05-0,20",0.05,"",0]
["8.3a","Fehlerhafte Anwendung des Materials, z. B. zu geringe Dachneigung, genagelte Dachbahnen, wellige Dachbahnen",null,0.25,null,25,null,"0,25-1,25",0.05,{"$f":"IF(AND($K$2=\"Wert\",$E72=\"x\"),$L$2*$M$2*D72,\"\")","v":""},0]
["8.3a","Eindeckung aus Asbestzement\n(Hier können gesonderte Entsorgungskosten entstehen)",null,0.5,null,50,null,"0,50-1,00",0.5,{"$f":"IF(AND($K$2=\"Wert\",$E73=\"x\"),$L$2*$M$2*D73,\"\")","v":""},{"$f":"IF(E73=\"x\",D73,0)","v":0}]
["8.3a","Rinnen fehlen bzw. ohne Funktion (0,25 je Rinne)",null,0.25,null,25,null,"0,25-0,50",0.25,{"$f":"IF(AND($K$2=\"Wert\",$E74=\"x\"),$L$2*$M$2*D74,\"\")","v":""},{"$f":"IF(E74=\"x\",D74,0)","v":0}]
[]
["Ausgangswert",null,{"$f":"SUMIF($E$4:$E$45,\"x\",$C$4:$C$45)+SUMIF($E$57:$E$74,\"x\",$C$57:$C$74)","v":23}]
["Abzüge",null,{"$f":"SUMIF($E$4:$E$74,\"x\",$D$4:$D$74)","v":0}]
["Rechenwert",null,{"$f":"C76-C77","v":23}]
[]
[]
[null,"Datum der Schätzung:"]
[]
[null,"Pächter:"]
[]
[null,"Gartenadresse:"]

{"sheet":"Holzlaube (Typ A)","index":3,"n_rows":51,"n_cols":13,"rows_kept":51,"cut":false,"hidden":false,"merged":[[43,0,43,1],[43,2,43,4],[1,0,1,4],[40,0,40,4],[41,0,41,1],[41,2,41,4],[42,0,42,1],[42,2,42,4]]}
[null,null,null,null,null,null,null,"Ausgangs-\nwert","Abzüge","Rechen-\nwert",null,{"$f":"IF(K2=\"Wert\",\"Laubengröße\",\"\")","v":"Laubengröße"},{"$f":"IF(K2=\"Wert\",\"Bauindex\",\"\")","v":"Bauindex"}]
["Wertermittlung Einfachlaube ohne Fundament (Typ A)",null,null,null,null,null,null,{"$f":"C42","v":8.5},{"$f":"C43","v":0},{"$f":"C44","v":8.5},"Wert",24,27.795000000000002]
["lfd.\nNr.","Beschreibung","Normal-\nwert","Abzug","Aus-\nwahl",null,null,{"$f":"IF($K$2=\"Wert\",$L$2*$M$2*H2,\"\")","v":5670.18},{"$f":"IF($K$2=\"Wert\",$L$2*$M$2*I2,\"\")","v":0},{"$f":"IF($K$2=\"Wert\",$L$2*$M$2*J2,\"\")","v":5670.18}]
[1,"Fundament"]
["1.2","Lagerhölzer auf  im Sand verlegten Gehwegplatten oder Sockelsteinen",1,null,"x"]
["1.3","Lagerhölzer ebenerdig auf Gehwegplatten oder Sockelsteinen verlegt",null,0.5,null,null,null,null,null,{"$f":"IF(AND($K$2=\"Wert\",$E6=\"x\"),$L$2*$M$2*D6,\"\")","v":""},{"$f":"IF(E6=\"x\",D6,0)","v":0}]
["2","Umfassungswände"]
["2.1","Blockhausbohlen, Wandstärke mindestens 4,5 cm",2.5,null,"x",null,null,null,null,{"$f":"IF(AND($K$2=\"Wert\",$E8=\"x\"),$L$2*$M$2*C8,\"\")","v":1667.7},{"$f":"IF(E8=\"x\",C8,0)","v":2.5}]
["2.2","Blockhausbohlen, Wandstärke nur 3,0 bis 4,0 cm",null,1,null,null,null,null,null,{"$f":"IF(AND($K$2=\"Wert\",$E9=\"x\"),$L$2*$M$2*D9,\"\")","v":""},{"$f":"IF(E9=\"x\",D9,0)","v":0}]
["2.2","Ausführung in Nut- und Federholz oder Blockhausbohlen unter 3,0 cm",null,1.5,null,null,null,null,null,"",{"$f":"IF(E10=\"x\",D10,0)","v":0}]
["3","Außenanstrich"]
["3.1","Mehrmaliger Anstrich mit Anstrichmittel, welches Holzteile sowohl gegen Feuchtigkeit als auch gegen Schädlinge schützt",1,null,"x",125,null,null,"Stufung",{"$f":"IF(AND($K$2=\"Wert\",$E12=\"x\"),$L$2*$M$2*C12,\"\")","v":667.08},{"$f":"IF(E12=\"x\",C12,0)","v":1}]
["3.2","Anstrich ist älter als vier Jahre, Abzug 0,25 pro Jahr",null,{"$f":"F13*0.01","v":0.25},null,25,null,"0,25-1,00",0.25,{"$f":"IF(AND($K$2=\"Wert\",$E13=\"x\"),$L$2*$M$2*D13,\"\")","v":""},{"$f":"IF(E13=\"x\",D13,0)","v":0}]
["3.3","Anstrich blättert ab und muss erneuert werden, 0,25 jeSeite",null,{"$f":"F14*0.01","v":0.25},null,25,null,"0,25-1,00",0.25,{"$f":"IF(AND($K$2=\"Wert\",$E14=\"x\"),$L$2*$M$2*D14,\"\")","v":""},{"$f":"IF(E14=\"x\",D14,0)","v":0}]
["4","Innenwand"]
["4.1","Innenwand muss konstruktiv wie die Außenwände ausgeführt sein",0.5,null,"x",null,null,null,null,{"$f":"IF(AND($K$2=\"Wert\",$E16=\"x\"),$L$2*$M$2*C16,\"\")","v":333.54},{"$f":"IF(E16=\"x\",C16,0)","v":0.5}]
["5","Fenster und Türen",1.5,{"$f":"SUMIF($E$21:$E$24,\"\",$C$21:$C$24)","v":0},"x",null,null,null,null,{"$f":"IF(AND($K$2=\"Wert\",$E17=\"x\"),$L$2*$M$2*C17,\"\")","v":1000.6200000000001},{"$f":"IF(E17=\"x\",C17,0)","v":1.5}]
[null,"Handwerksgerecht erstellte Fenster in Normabmessungen",null,null,null,null,null,null,null,null,{"$f":"IF(E17=\"x\",D17,0)","v":0}]
[null,"Nicht zu öffnende Fenster werden nicht berücksichtigt"]
[null,"Bei Altbauteilen wird ein Abzug bis zu 50 % vorgenommen"]
["5.1","Haustür",0.75,{"$f":"F21*0.01","v":0},"x",0,null,"0,00-0,35",0.05,{"$f":"IF(AND($K$2=\"Wert\",$E21=\"x\"),$L$2*$M$2*(C21-D21),\"\")","v":500.31000000000006},{"$f":"IF(E21=\"x\",C21-D21,0)","v":0.75}]
["5.1","Nebentür",0.25,0,"x",0,null,"0,00-0,12",0.02,{"$f":"IF(AND($K$2=\"Wert\",$E22=\"x\"),$L$2*$M$2*(C22-D22),\"\")","v":166.77},{"$f":"IF(E22=\"x\",C22-D22,0)","v":0.25}]
["5.1","1 Fenster",0.25,0,"x",0,null,"0,00-0,12",0.02,{"$f":"IF(AND($K$2=\"Wert\",$E23=\"x\"),$L$2*$M$2*(C23-D23),\"\")","v":166.77},{"$f":"IF(E23=\"x\",C23-D23,0)","v":0.25}]
["5.1","1 Fenster",0.25,0,"x",0,null,"0,00-0,12",0.02,{"$f":"IF(AND($K$2=\"Wert\",$E24=\"x\"),$L$2*$M$2*(C24-D24),\"\")","v":166.77},{"$f":"IF(E24=\"x\",C24-D24,0)","v":0.25}]
["5.2","Der Farbanstrich der Fenster ist mangelhaft",null,0.1,null,null,null,null,null,null,{"$f":"IF(E25=\"x\",D25,0)","v":0}]
["5.3","Fensterbänke, Rahmen und Flügel sind durch mangelnde Pflege in ihrer Funktion beeinträchtigt  - daurch bis zu 50 % Abzug",null,0,null,0,null,"0,00-0,75",0.05,{"$f":"IF(AND($K$2=\"Wert\",$E26=\"x\"),$L$2*$M$2*D26,\"\")","v":""},{"$f":"IF(E26=\"x\",D26,0)","v":0}]
["6","Dach / Entwässerung"]
["6.1","Satteldach\neinfache, handwerksgerechte Konstruktion, die den statischen Erfordernissen entspricht. Holz muss imprägniert sein. Eindeckung Pappschindeln auf Nut- und Federholz oder Spanplatten",2,null,"x",null,null,null,null,{"$f":"IF(AND($K$2=\"Wert\",$E28=\"x\"),$L$2*$M$2*C28,\"\")","v":1334.16},{"$f":"IF(E28=\"x\",C28,0)","v":2}]
["6.2","Eindeckung aus Dachbahnen",null,0.25,null,50,null,null,null,null,{"$f":"IF(E29=\"x\",D29,0)","v":0}]
["6.2","Eindeckung aus Wellzement oder ähnlichem Material",null,0.25,null,null,null,null,null,null,0]
["6.3","Windfedern fehlen (je Windfeder 0,05)",null,{"$f":"F31*0.01","v":0.05},null,5,null,"0,05-0,20",0.05,{"$f":"IF(AND($K$2=\"Wert\",$E31=\"x\"),$L$2*$M$2*D31,\"\")","v":""},0]
["6.3","Fehlerhafte Anwendung des Materials der Eindeckung, genagelte oder wellige Dachbahnen",null,0.25,null,null,null,null,null,null,0]
["6.3","Eindeckung aus Asbestzement\n(Hier können gesonderte Entsorgungskosten entstehen)",null,0.25,null,25,null,"0,25-0,50",0.25,{"$f":"IF(AND($K$2=\"Wert\",$E33=\"x\"),$L$2*$M$2*D33,\"\")","v":""},{"$f":"IF(E33=\"x\",D33,0)","v":0}]
["6.3","Rinnen fehlen bzw. ohne Funktion (0,25 je Rinne)",null,0.25,null,25,null,"0,25-0,50",0.25,"",0]
["6.1a","Pult- oder Flachdach\nBalkenlage mit Isolierung, Schalung und Regenhaut",1,null,null,125,null,null,null,null,{"$f":"IF(E35=\"x\",C35,0)","v":0}]
["6.2a","Eindeckung aus Wellzement oder ähnlichem Material",null,0.25,null,null,null,null,null,{"$f":"IF(AND($K$2=\"Wert\",$E36=\"x\"),$L$2*$M$2*D36,\"\")","v":""},0]
["6.3a","Windfedern fehlen (je Windfeder 0,05)",null,0.05,null,5,null,"0,05-0,20",0.05,{"$f":"IF(AND($K$2=\"Wert\",$E37=\"x\"),$L$2*$M$2*D37,\"\")","v":""},0]
["6.3a","Fehlerhafte Anwendung des Materials, z. B. zu geringe Dachneigung, genagelte Dachbahnen, wellige Dachbahnen",null,0.25,null,25,null,null,null,{"$f":"IF(AND($K$2=\"Wert\",$E38=\"x\"),$L$2*$M$2*D38,\"\")","v":""},0]
["6.3a","Eindeckung aus Asbestzement\n(Hier können gesonderte Entsorgungskosten entstehen)",null,{"$f":"F39*0.01","v":0.25},null,25,null,"0,25-0,50",0.25,{"$f":"IF(AND($K$2=\"Wert\",$E39=\"x\"),$L$2*$M$2*D39,\"\")","v":""},0]
["6.3a","Rinnen fehlen bzw. ohne Funktion (0,25 je Rinne)",null,0.25,null,25,null,"0,25-0,50",0.25,"",0]
[]
["Ausgangswert",null,{"$f":"SUMIF($E$4:$E$17,\"x\",$C$4:$C$17)+SUMIF($E$28:$E$40,\"x\",$C$28:$C$40)","v":8.5}]
["Abzüge",null,{"$f":"SUMIF($E$4:$E$40,\"x\",$D$4:$D$40)","v":0}]
["Rechenwert",null,{"$f":"C42-C43","v":8.5}]
[]
[]
[null,"Datum der Schätzung:"]
[]
[null,"Pächter:"]
[]
[null,"Gartenadresse:"]

{"sheet":"Holzlaube (Typ B)","index":4,"n_rows":54,"n_cols":13,"rows_kept":54,"cut":false,"hidden":false,"merged":[[46,0,46,1],[46,2,46,4],[1,0,1,4],[43,0,43,4],[44,0,44,1],[44,2,44,4],[45,0,45,1],[45,2,45,4]]}
[null,null,null,null,null,null,null,"Ausgangs-\nwert","Abzüge","Rechen-\nwert",null,{"$f":"IF(K2=\"Wert\",\"Laubengröße\",\"\")","v":"Laubengröße"},{"$f":"IF(K2=\"Wert\",\"Bauindex\",\"\")","v":"Bauindex"}]
["Wertermittlung Einfachlaube mit Fundament (Typ B)",null,null,null,null,null,null,{"$f":"C45","v":12.5},{"$f":"C46","v":0},{"$f":"C47","v":12.5},"Wert",24,27.795000000000002]
["lfd.\nNr.","Beschreibung","Normal-\nwert","Abzug","Aus-\nwahl",null,null,{"$f":"IF($K$2=\"Wert\",$L$2*$M$2*H2,\"\")","v":8338.5},{"$f":"IF($K$2=\"Wert\",$L$2*$M$2*I2,\"\")","v":0},{"$f":"IF($K$2=\"Wert\",$L$2*$M$2*J2,\"\")","v":8338.5}]
[1,"Fundament & Bodenplatte"]
["1.1","80 cm tiefes Streifenfundament mit 12 bis 15 cm Betonplatte",5,null,"x",null,null,null,null,{"$f":"IF(AND($K$2=\"Wert\",$E5=\"x\"),$L$2*$M$2*C5,\"\")","v":3335.4},{"$f":"IF(E5=\"x\",C5,0)","v":5}]
["1.2","Statt der Betonplatte Lagerhölzer auf Streifenfundament",null,3,null,null,null,null,null,{"$f":"IF(AND($K$2=\"Wert\",$E6=\"x\"),$L$2*$M$2*D6,\"\")","v":""},{"$f":"IF(E6=\"x\",D6,0)","v":0}]
["1.2","Streifenfundament fehlt bei bei sandigen Böden",null,1,null,null,null,null,null,null,{"$f":"IF(E7=\"x\",D7,0)","v":0}]
["1.3","Fehlt das Streifenfundament bei normalen Böden, ist das Fundament durch Frost gefährdet",null,2,null,null,null,null,null,null,0]
["1.3","Fundamentoberkante bei erdgleich",null,4.5,null,null,null,null,null,{"$f":"IF(AND($K$2=\"Wert\",$E9=\"x\"),$L$2*$M$2*D9,\"\")","v":""},0]
["2","Umfassungswände"]
["2.1","Blockhausbohlen, Wandstärke mindestens 4,5 cm",2.5,null,"x",null,null,null,null,{"$f":"IF(AND($K$2=\"Wert\",$E11=\"x\"),$L$2*$M$2*C11,\"\")","v":1667.7},{"$f":"IF(E11=\"x\",C11,0)","v":2.5}]
["2.2","Blockhausbohlen, Wandstärke nur 3,0 bis 4,0 cm",null,1,null,null,null,null,null,{"$f":"IF(AND($K$2=\"Wert\",$E12=\"x\"),$L$2*$M$2*D12,\"\")","v":""},{"$f":"IF(E12=\"x\",D12,0)","v":0}]
["2.2","Ausführung in Nut- und Federholz oder Blockhausbohlen unter 3,0 cm",null,1.5,null,null,null,null,null,"",0]
["3","Außenanstrich"]
["3.1","Mehrmaliger Anstrich mit Anstrichmittel, welches Holzteile sowohl gegen Feuchtigkeit als auch gegen Schädlinge schützt",1,null,"x",125,null,null,"Stufung",{"$f":"IF(AND($K$2=\"Wert\",$E15=\"x\"),$L$2*$M$2*C15,\"\")","v":667.08},{"$f":"IF(E15=\"x\",C15,0)","v":1}]
["3.2","Anstrich ist älter als vier Jahre, Abzug 0,25 pro Jahr",null,{"$f":"F16*0.01","v":0.25},null,25,null,"0,25-1,00",0.25,{"$f":"IF(AND($K$2=\"Wert\",$E16=\"x\"),$L$2*$M$2*D16,\"\")","v":""},{"$f":"IF(E16=\"x\",D16,0)","v":0}]
["3.3","Anstrich blättert ab und muss erneuert werden, 0,25 jeSeite",null,{"$f":"F17*0.01","v":0.25},null,25,null,"0,25-1,00",0.25,{"$f":"IF(AND($K$2=\"Wert\",$E17=\"x\"),$L$2*$M$2*D17,\"\")","v":""},{"$f":"IF(E17=\"x\",D17,0)","v":0}]
["4","Innenwand"]
["4.1","Innenwand muss konstruktiv wie die Außenwände ausgeführt sein",0.5,null,"x",null,null,null,null,{"$f":"IF(AND($K$2=\"Wert\",$E19=\"x\"),$L$2*$M$2*C19,\"\")","v":333.54},{"$f":"IF(E19=\"x\",C19,0)","v":0.5}]
["5","Fenster und Türen",1.5,{"$f":"SUMIF($E$24:$E$27,\"\",$C$24:$C$27)","v":0},"x",null,null,null,null,{"$f":"IF(AND($K$2=\"Wert\",$E20=\"x\"),$L$2*$M$2*C20,\"\")","v":1000.6200000000001},{"$f":"IF(E20=\"x\",C20,0)","v":1.5}]
[null,"Handwerksgerecht erstellte Fenster in Normabmessungen",null,null,null,null,null,null,null,null,{"$f":"IF(E20=\"x\",D20,0)","v":0}]
[null,"Nicht zu öffnende Fenster werden nicht berücksichtigt"]
[null,"Bei Altbauteilen wird ein Abzug bis zu 50 % vorgenommen"]
["5.1","Haustür",0.75,{"$f":"F24*0.01","v":0},"x",0,null,"0,00-0,35",0.05,{"$f":"IF(AND($K$2=\"Wert\",$E24=\"x\"),$L$2*$M$2*(C24-D24),\"\")","v":500.31000000000006}]
["5.1","Nebentür",0.25,0,"x",0,null,"0,00-0,12",0.02,{"$f":"IF(AND($K$2=\"Wert\",$E25=\"x\"),$L$2*$M$2*(C25-D25),\"\")","v":166.77}]
["5.1","1 Fenster",0.25,0,"x",0,null,"0,00-0,12",0.02,{"$f":"IF(AND($K$2=\"Wert\",$E26=\"x\"),$L$2*$M$2*(C26-D26),\"\")","v":166.77}]
["5.1","1 Fenster",0.25,0,"x",0,null,"0,00-0,12",0.05,{"$f":"IF(AND($K$2=\"Wert\",$E27=\"x\"),$L$2*$M$2*(C27-D27),\"\")","v":166.77}]
["5.2","Der Farbanstrich der Fenster ist mangelhaft",null,0.1,null,null,null,null,null,null,{"$f":"IF(E28=\"x\",D28,0)","v":0}]
["5.3","Fensterbänke, Rahmen und Flügel sind durch mangelnde Pflege in ihrer Funktion beeinträchtigt  - daurch bis zu 50 % Abzug",null,0.75,null,75,null,"0,00-0,75",0.05,{"$f":"IF(AND($K$2=\"Wert\",$E29=\"x\"),$L$2*$M$2*D29,\"\")","v":""},{"$f":"IF(E29=\"x\",D29,0)","v":0}]
["6","Dach / Entwässerung"]
["6.1","Satteldach\neinfache, handwerksgerechte Konstruktion, die den statischen Erfordernissen entspricht. Holz muss imprägniert sein. Eindeckung Pappschindeln auf Nut- und Federholz oder Spanplatten",2,null,"x",null,null,null,null,{"$f":"IF(AND($K$2=\"Wert\",$E31=\"x\"),$L$2*$M$2*C31,\"\")","v":1334.16},{"$f":"IF(E31=\"x\",C31,0)","v":2}]
["6.2","Eindeckung aus Dachbahnen",null,0.25,null,50,null,null,null,null,{"$f":"IF(E32=\"x\",D32,0)","v":0}]
["6.2","Eindeckung aus Wellzement oder ähnlichem Material",null,0.25,null,null,null,null,null,null,{"$f":"IF(E33=\"x\",D33,0)","v":0}]
["6.3","Windfedern fehlen (je Windfeder 0,05)",null,{"$f":"F34*0.01","v":0.05},null,5,null,"0,05-0,20",0.05,{"$f":"IF(AND($K$2=\"Wert\",$E34=\"x\"),$L$2*$M$2*D34,\"\")","v":""},0]
["6.3","Fehlerhafte Anwendung des Materials der Eindeckung, genagelte oder wellige Dachbahnen",null,0.25,null,null,null,null,null,null,0]
["6.3","Eindeckung aus Asbestzement\n(Hier können gesonderte Entsorgungskosten entstehen)",null,0.5,null,50,null,"0,25-0,50",0.25,{"$f":"IF(AND($K$2=\"Wert\",$E36=\"x\"),$L$2*$M$2*D36,\"\")","v":""},0]
["6.3","Rinnen fehlen bzw. ohne Funktion (0,25 je Rinne)",null,0.5,null,50,null,"0,25-0,50",0.25,"",0]
["6.1a","Pult- oder Flachdach\nBalkenlage mit Isolierung, Schalung und Regenhaut",1,null,null,125]
["6.2a","Eindeckung aus Wellzement oder ähnlichem Material",null,0.25,null,null,null,null,null,{"$f":"IF(AND($K$2=\"Wert\",$E39=\"x\"),$L$2*$M$2*D39,\"\")","v":""},{"$f":"IF(E39=\"x\",D39,0)","v":0}]
["6.3a","Windfedern fehlen (je Windfeder 0,05)",null,0.05,null,5,null,"0,05-0,20",0.05,{"$f":"IF(AND($K$2=\"Wert\",$E40=\"x\"),$L$2*$M$2*D40,\"\")","v":""},0]
["6.3a","Fehlerhafte Anwendung des Materials, z. B. zu geringe Dachneigung, genagelte Dachbahnen, wellige Dachbahnen",null,0.25,null,25,null,null,null,{"$f":"IF(AND($K$2=\"Wert\",$E41=\"x\"),$L$2*$M$2*D41,\"\")","v":""},0]
["6.3a","Eindeckung aus Asbestzement\n(Hier können gesonderte Entsorgungskosten entstehen)",null,{"$f":"F42*0.01","v":0.25},null,25,null,"0,25-0,50",0.25,{"$f":"IF(AND($K$2=\"Wert\",$E42=\"x\"),$L$2*$M$2*D42,\"\")","v":""},0]
["6.3a","Rinnen fehlen bzw. ohne Funktion (0,25 je Rinne)",null,0.25,null,25,null,"0,25-0,50",0.25,"",0]
[]
["Ausgangswert",null,{"$f":"SUMIF($E$4:$E$20,\"x\",$C$4:$C$20)+SUMIF($E$31:$E$43,\"x\",$C$31:$C$43)","v":12.5}]
["Abzüge",null,{"$f":"SUMIF($E$4:$E$43,\"x\",$D$4:$D$43)","v":0}]
["Rechenwert",null,{"$f":"C45-C46","v":12.5}]
[]
[]
[null,"Datum der Schätzung:"]
[]
[null,"Pächter:"]
[]
[null,"Gartenadresse:"]

{"sheet":"Holzlaube (Nurdach)","index":5,"n_rows":76,"n_cols":13,"rows_kept":76,"cut":false,"hidden":false,"merged":[[68,0,68,1],[68,2,68,4],[1,0,1,4],[65,0,65,4],[66,0,66,1],[66,2,66,4],[67,0,67,1],[67,2,67,4]]}
[null,null,null,null,null,null,null,"Ausgangs-\nwert","Abzüge","Rechen-\nwert",null,{"$f":"IF(K2=\"Wert\",\"Laubengröße\",\"\")","v":"Laubengröße"},{"$f":"IF(K2=\"Wert\",\"Bauindex\",\"\")","v":"Bauindex"}]
["Wertermittlung Holz-Laube (Nurdach)",null,null,null,null,null,null,{"$f":"C67","v":23},{"$f":"C68","v":0},{"$f":"C69","v":23},"Wert",24,27.795000000000002]
["lfd.\nNr.","Beschreibung","Normal-\nwert","Abzug","Aus-\nwahl",null,null,{"$f":"IF($K$2=\"Wert\",$L$2*$M$2*H2,\"\")","v":15342.84},{"$f":"IF($K$2=\"Wert\",$L$2*$M$2*I2,\"\")","v":0},{"$f":"IF($K$2=\"Wert\",$L$2*$M$2*J2,\"\")","v":15342.84}]
[1,"Fundament & Bodenplatte"]
["1.1","80 cm tiefes Streifenfundament mit 12 bis 15 cm Betonplatte",5,null,"x",null,null,null,null,{"$f":"IF(AND($K$2=\"Wert\",$E5=\"x\"),$L$2*$M$2*C5,\"\")","v":3335.4},{"$f":"IF(E5=\"x\",C5,0)","v":5}]
["1.2","Statt der Betonplatte Lagerhölzer auf Streifenfundament und Hobeldielen oder Fußbodenplatten 24 mm (Spanplatten V100)",null,2.5,null,null,null,null,null,{"$f":"IF(AND($K$2=\"Wert\",$E6=\"x\"),$L$2*$M$2*D6,\"\")","v":""},{"$f":"IF(E6=\"x\",D6,0)","v":0}]
["1.2","Nur Sockelsteine mit Lagerhölzern, sonst wie vorstehend",null,3.5,null,null,null,null,null,{"$f":"IF(AND($K$2=\"Wert\",$E7=\"x\"),$L$2*$M$2*D7,\"\")","v":""},{"$f":"IF(E7=\"x\",D7,0)","v":0}]
["1.2","Streifenfundament fehlt bei sandigen Böden",null,2,null,null,null,null,null,null,{"$f":"IF(E8=\"x\",D8,0)","v":0}]
["1.3","Fehlt das Streifenfundament bei normalen Böden, ist das Fundament durch Frost gefährdet",null,3,null,null,null,null,null,null,{"$f":"IF(E9=\"x\",D9,0)","v":0}]
["1.3","Fundamentoberkante erdgleich",null,2,null,null,null,null,null,{"$f":"IF(AND($K$2=\"Wert\",$E10=\"x\"),$L$2*$M$2*D10,\"\")","v":""},{"$f":"IF(E10=\"x\",D10,0)","v":0}]
["2","Isolierung des Fußbodens (Estrich)"]
["2.1","Ein einwandfreier schwimmender Estrich auf Betonplatte oder\nLagerhölzer 10 cm mit Isolierungund Hobeldielen oder \nFußbodenplatten 24 mm (Spanplatten V100)",0.75,null,"x",null,null,null,null,{"$f":"IF(AND($K$2=\"Wert\",$E12=\"x\"),$L$2*$M$2*C12,\"\")","v":500.31000000000006},{"$f":"IF(E12=\"x\",C12,0)","v":0.75}]
["2.2","Einfacher Verbundestrich auf einem Betonfundament",null,0.25,null,null,null,null,null,null,{"$f":"IF(E13=\"x\",D13,0)","v":0}]
["2.2","Fehlende Isolierung unter den Hobeldielen oder Fußbodenplatten",null,0.75,null,75,null,null,null,{"$f":"IF(AND($K$2=\"Wert\",$E14=\"x\"),$L$2*$M$2*D14,\"\")","v":""},0]
["2.3","Stark gerissener schwimmender Estrich",null,0.5,null,null,null,null,null,{"$f":"IF(AND($K$2=\"Wert\",$E15=\"x\"),$L$2*$M$2*D15,\"\")","v":""},0]
["2.3","Durch Wasser durchnässter Estrich (Schaden aus 1.3)",null,0.75,null,null,null,null,null,{"$f":"IF(AND($K$2=\"Wert\",$E16=\"x\"),$L$2*$M$2*D16,\"\")","v":""},0]
["2.3","Stärke der Fußbodenplatten zu gering oder Abstand der Lagerhölzer zu groß. Boden biegt bei Belastung merklich durch.",null,0.5,null,null,null,null,null,{"$f":"IF(AND($K$2=\"Wert\",$E17=\"x\"),$L$2*$M$2*D17,\"\")","v":""},0]
["2.3","Isolierung ist feucht",null,0.75,null,null,null,null,null,{"$f":"IF(AND($K$2=\"Wert\",$E18=\"x\"),$L$2*$M$2*D18,\"\")","v":""},0]
["3","Giebelwände"]
["3.1","Holzgerüst aus Kanthölzern der Güteklasse 2, mind. 8 x 8 cm, mit ausr. Schubaussteifung sowie Ober- und Untergurten.Gerüst muss auf einem gegen Feuchtigkeit isolierten Sockel stehen. Ständerabstand max. 70 cm. Öffnungen und Fugen sind so zu verleisten, dass eingedrungenes Wasser problemlos ablaufen kann. Wände außen 19,5 mm Nut- und Federholz, innen 12,5 mm oder Spanplatten gleicher Stärke.\nDas Dach liegt an den Dachseiten auf einem Drempel (Seitenwand geringer Höhe) auf",4,null,"x",null,null,null,"Stufung",{"$f":"IF(AND($K$2=\"Wert\",$E20=\"x\"),$L$2*$M$2*C20,\"\")","v":2668.32},{"$f":"IF(E20=\"x\",C20,0)","v":4}]
["3.2","Kein Drempel vorhanden",null,1,null,null,null,null,null,null,{"$f":"IF(E21=\"x\",D21,0)","v":0}]
["3.2","Außenschalung statt 19,5 nur 12,5 mm",null,{"$f":"F22*0.01","v":0.25},null,25,null,"0,25-0,50",0.05,{"$f":"IF(AND($K$2=\"Wert\",$E22=\"x\"),$L$2*$M$2*D22,\"\")","v":""},0]
["3.2","Außenschalung erkennbar 3. Wahl",null,{"$f":"F23*0.01","v":0.25},null,25,null,"0,25-0,50",0.05,"",0]
["3.2","Statt Profilholz verputzte Leichtbauplatten",null,{"$f":"F24*0.01","v":0.2},null,20,null,"0,20-0,40",0.05,"",0]
["3.2","Ständerabstand größer 70 cm",null,{"$f":"F25*0.01","v":0.1},null,10,null,"0,10-0,60",0.1,"",0]
["3.2","Holzkonstruktion aus altem Bauholz",null,{"$f":"F26*0.01","v":0.2},null,20,null,"0,20-0,40",0.05,"",0]
["3.3","Öffnungen und Fugen nicht verleistet",null,0.4,null,null,null,null,null,"",0]
["3.3","Abstand Schalung bis Oberkante Gelände kleiner als 15 cm",null,0.75,null,null,null,null,null,"",0]
["3.3","Nicht handwerksgerechte Anbringung der Außenschalung, welches zum Entfernen der gesamten Schalung zwingt.",null,{"$f":"F29*0.01","v":0.75},null,75,null,"0,75-2,00",0.05,"",0]
["4","Außenanstrich"]
["4.1","Mehrmaliger Anstrich mit Anstrichmittel, welches Holzteile sowohl gegen Feuchtigkeit als auch gegen Schädlinge schützt",0.5,null,"x",125,null,null,null,{"$f":"IF(AND($K$2=\"Wert\",$E31=\"x\"),$L$2*$M$2*C31,\"\")","v":333.54},{"$f":"IF(E31=\"x\",C31,0)","v":0.5}]
["4.2","Anstrich ist älter als vier Jahre, Abzug 0,25 pro Jahr",null,{"$f":"F32*0.01","v":0.25},null,25,null,"0,25-0,50",0.25,{"$f":"IF(AND($K$2=\"Wert\",$E32=\"x\"),$L$2*$M$2*D32,\"\")","v":""},{"$f":"IF(E32=\"x\",D32,0)","v":0}]
["4.3","Anstrich blättert ab und muss erneuert werden (0,25 je Seite)",null,{"$f":"F33*0.01","v":0.25},null,25,null,"0,25-0,50",0.25,{"$f":"IF(AND($K$2=\"Wert\",$E33=\"x\"),$L$2*$M$2*D33,\"\")","v":""},{"$f":"IF(E33=\"x\",D33,0)","v":0}]
["5","Innenwand"]
["5.1","Innenwand muss konstruktiv wie die Außenwände ausgeführt sein",1,null,"x",null,null,null,null,{"$f":"IF(AND($K$2=\"Wert\",$E35=\"x\"),$L$2*$M$2*C35,\"\")","v":667.08},{"$f":"IF(E35=\"x\",D35,0)","v":0}]
["5.2","Nur einseitig verschalt",null,0.25,null,null,null,null,null,{"$f":"IF(AND($K$2=\"Wert\",$E36=\"x\"),$L$2*$M$2*D36,\"\")","v":""},{"$f":"IF(E36=\"x\",D36,0)","v":0}]
["5.2","Verkleidung aus qualitativ minderwertigen Materialien",null,0.25,null,null,null,null,null,{"$f":"IF(AND($K$2=\"Wert\",$E37=\"x\"),$L$2*$M$2*D37,\"\")","v":""},{"$f":"IF(E37=\"x\",D37,0)","v":0}]
["5.3","Ständerabstand größer als 70 cm",null,0.25,null,null,null,null,null,{"$f":"IF(AND($K$2=\"Wert\",$E38=\"x\"),$L$2*$M$2*D38,\"\")","v":""},{"$f":"IF(E38=\"x\",D38,0)","v":0}]
["6","Deckenverkleidung & Wärmeisolierung"]
["6.1","Deckenverkleidung aus einfachem Profilholz oder Gipskartonplatten.\nDie beiden Giebelwände sowie die Innenseiten der Dachflächen sind gegen Wärme und Kälte zu isolieren. Mindeststärke der Isolierung 6 cm. Je nach Material ist darauf zu achten, dass eine Durchfeuchtung ausgeschlossen ist.",3.5,null,"x",null,null,null,null,{"$f":"IF(AND($K$2=\"Wert\",$E40=\"x\"),$L$2*$M$2*C40,\"\")","v":2334.7800000000002},{"$f":"IF(E40=\"x\",C40,0)","v":3.5}]
["6.2","Deckenverkleidung aus Gipskartonplatten",null,0.3,null,50,null,null,null,{"$f":"IF(AND($K$2=\"Wert\",$E41=\"x\"),$L$2*$M$2*D41,\"\")","v":""},{"$f":"IF(E41=\"x\",D41,0)","v":0}]
["6.2","Stärke der Isolierung nur ca. 5 cm ",null,0.5,null,50,null,null,null,{"$f":"IF(AND($K$2=\"Wert\",$E42=\"x\"),$L$2*$M$2*D42,\"\")","v":""},{"$f":"IF(E42=\"x\",D42,0)","v":0}]
["6.3","Verwendung einfacherer Baustoffe (z. B. Kurzlängen bei Profilholz)",null,{"$f":"F43*0.01","v":0.15},null,15,null,"0,15-0,30",0.05,{"$f":"IF(AND($K$2=\"Wert\",$E43=\"x\"),$L$2*$M$2*D43,\"\")","v":""},{"$f":"IF(E43=\"x\",D43,0)","v":0}]
["6.2","Mangelnde Anbringung, offene Fugen usw.",null,0.3,null,null,null,null,null,null,{"$f":"IF(E44=\"x\",D44,0)","v":0}]
["6.3","Durch Schäden in der Außenverkleidung sind Teile der Isolierung durchfeuchtet.",null,0.3,null,50,null,null,null,null,0]
["7","Fenster und Türen",2.25,{"$f":"SUMIF($E$50:$E$54,\"\",$C$50:$C$54)","v":0},"x",null,null,null,null,{"$f":"IF(AND($K$2=\"Wert\",$E46=\"x\"),$L$2*$M$2*C46,\"\")","v":1500.93},{"$f":"IF(E46=\"x\",C46,0)","v":2.25}]
[null,"Handwerksgerecht erstellte Fenster in Normabmessungen",null,null,null,null,null,null,null,null,{"$f":"IF(E46=\"x\",D46,0)","v":0}]
[null,"Nicht zu öffnende Fenster werden nicht berücksichtigt"]
[null,"Bei Altbauteilen wird ein Abzug bis zu 50 % vorgenommen"]
["7.1","Haustür",1,{"$f":"F50*0.01","v":0},"x",0,null,"0,00-0,60",0.05,{"$f":"IF(AND($K$2=\"Wert\",$E50=\"x\"),$L$2*$M$2*(C50-D50),\"\")","v":667.08}]
["7.1","Nebentür",0.5,0,"x",0,null,"0,00-0,30",0.05,{"$f":"IF(AND($K$2=\"Wert\",$E51=\"x\"),$L$2*$M$2*(C51-D51),\"\")","v":333.54}]
["7.1","Großes Fenster",0.3,0,"x",0,null,"0,00-0,30",0.05,{"$f":"IF(AND($K$2=\"Wert\",$E52=\"x\"),$L$2*$M$2*(C52-D52),\"\")","v":200.124}]
["7.1","Großes Fenster",0.3,0,"x",0,null,"0,00-0,30",0.05,{"$f":"IF(AND($K$2=\"Wert\",$E53=\"x\"),$L$2*$M$2*(C53-D53),\"\")","v":200.124}]
["7.1","Kleines Fenster",0.15,0,"x",0,null,"0,00-0,25",0.05,{"$f":"IF(AND($K$2=\"Wert\",$E54=\"x\"),$L$2*$M$2*(C54-D54),\"\")","v":100.062}]
["7.3","Der Farbanstrich der Fenster ist mangelhaft",null,0.1,null,null,null,null,null,null,{"$f":"IF(E55=\"x\",D55,0)","v":0}]
["7.3","Fensterbänke, Rahmen und Flügel sind durch mangelnde Pflege in ihrer Funktion beeinträchtigt  - daurch bis zu 50 % Abzug",null,0,null,0,null,"0,00-1,10",0.05,{"$f":"IF(AND($K$2=\"Wert\",$E56=\"x\"),$L$2*$M$2*D56,\"\")","v":""},{"$f":"IF(E56=\"x\",D56,0)","v":0}]
["8","Dach / Entwässerung"]
["8.1","Einfache, handwerksgerechte Konstruktion aus Bauholz der Güteklasse 2, die den statischen Erfordernissen entspricht. Holz muss imprägniert sein. Eindeckung Pfannen auf Latten mit Folie.",6,null,"x",null,null,null,null,{"$f":"IF(AND($K$2=\"Wert\",$E58=\"x\"),$L$2*$M$2*C58,\"\")","v":4002.4800000000005},{"$f":"IF(E58=\"x\",C58,0)","v":6}]
["8.2","Holzkonstruktion aus altem Bauholz",null,{"$f":"F59*0.01","v":0.5},null,50,null,"0,50-1,00",0.05,{"$f":"IF(AND($K$2=\"Wert\",$E59=\"x\"),$L$2*$M$2*D59,\"\")","v":""},{"$f":"IF(E59=\"x\",D59,0)","v":0}]
["8.2","Eindeckung aus Wellzement oder ähnlichem Material",null,1.25,null,125,null,"1,25-1,50",0.05,"",0]
["8.2","Eindeckung aus Dachbahnen",null,1.25,null,null,null,null,null,null,0]
["8.3","Windfedern fehlen (0,05 je Windfeder)",null,0.05,null,5,null,"0,05-0,20",0.05,{"$f":"IF(AND($K$2=\"Wert\",$E62=\"x\"),$L$2*$M$2*D62,\"\")","v":""},{"$f":"IF(E62=\"x\",D62,0)","v":0}]
["8.3","Fehlerhafte Anwendung des Materials, genagelte  oder wellige Dachbahnen",null,0.25,null,null,null,null,null,null,0]
["8.3","Eindeckung aus Asbestzement\n(Hier können gesonderte Entsorgungskosten entstehen)",null,{"$f":"F64*0.01","v":1.25},null,125,null,"1,25-1,50",0.25,"",0]
["8.3","Rinnen fehlen bzw. ohne Funktion (0,25 je Rinne)",null,0.25,null,25,null,"0,25-0,50",0.25,"",0]
[]
["Ausgangswert",null,{"$f":"SUMIF($E$4:$E$46,\"x\",$C$4:$C$46)+SUMIF($E$58:$E$65,\"x\",$C$58:$C$65)","v":23}]
["Abzüge",null,{"$f":"SUMIF($E$4:$E$65,\"x\",$D$4:$D$65)","v":0}]
["Rechenwert",null,{"$f":"C67-C68","v":23}]
[]
[]
[null,"Datum der Schätzung:"]
[]
[null,"Pächter:"]
[]
[null,"Gartenadresse:"]